[Event "IIe Tournoi de GMI du C'Chartres Echecs"]
[Site "Chartres, France"]
[Date "2021.05.18"]
[Round "3.3"]
[White "Milliet, Sophie"]
[Black "Maurizzi, Marc Andria"]
[Result "1-0"]
[TimeControl "5400+30"]
[WhiteTitle "IM"]
[BlackTitle "IM"]
[WhiteElo "2390"]
[BlackElo "2489"]

1. e4 {[%clk 01:30:56]} {[%emt 00:00:03]} e5 {[%clk 01:30:27]} {[%emt
00:00:34]} 2. Nf3 {[%clk 01:31:21]} {[%emt 00:00:04]} Nc6 {[%clk 01:30:52]}
{[%emt 00:00:06]} 3. Bb5 {[%clk 01:31:47]} {[%emt 00:00:04]} a6 {[%clk
01:30:47]} {[%emt 00:00:36]} 4. Ba4 {[%clk 01:32:12]} {[%emt 00:00:04]} Nf6
{[%clk 01:30:03]} {[%emt 00:01:13]} 5. O-O {[%clk 01:32:33]} {[%emt 00:00:09]}
b5 {[%clk 01:30:17]} {[%emt 00:00:17]} 6. Bb3 {[%clk 01:32:58]} {[%emt
00:00:05]} Bc5 {[%clk 01:30:34]} {[%emt 00:00:13]} 7. c3 {[%clk 01:32:50]}
{[%emt 00:00:37]} d6 {[%clk 01:30:56]} {[%emt 00:00:09]} 8. d4 {[%clk
01:32:54]} {[%emt 00:00:26]} Bb6 {[%clk 01:31:15]} {[%emt 00:00:11]} 9. Be3
{[%clk 01:33:12]} {[%emt 00:00:12]} O-O {[%clk 01:27:48]} {[%emt 00:03:56]} 10.
Nbd2 {[%clk 01:33:32]} {[%emt 00:00:10]} h6 {[%clk 01:25:34]} {[%emt 00:02:44]}
11. h3 {[%clk 01:33:49]} {[%emt 00:00:13]} Re8 {[%clk 01:14:13]} {[%emt
00:11:52]} 12. Bc2 {[%clk 01:31:39]} {[%emt 00:02:40]} exd4 {[%clk 00:56:49]}
{[%emt 00:17:53]} 13. cxd4 {[%clk 01:31:45]} {[%emt 00:00:24]} Nb4 {[%clk
00:57:16]} {[%emt 00:00:03]} 14. Bb1 {[%clk 01:30:40]} {[%emt 00:01:35]} c5
{[%clk 00:57:13]} {[%emt 00:00:33]} 15. d5 {[%clk 01:28:32]} {[%emt 00:02:38]}
a5 {[%clk 00:55:02]} {[%emt 00:02:42]} 16. a3 {[%clk 01:23:06]} {[%emt
00:05:55]} Na6 {[%clk 00:55:08]} {[%emt 00:00:23]} 17. a4 {[%clk 01:23:28]}
{[%emt 00:00:09]} Bd7 {[%clk 00:52:56]} {[%emt 00:02:42]} 18. axb5 {[%clk
01:18:47]} {[%emt 00:05:11]} Bxb5 {[%clk 00:53:11]} {[%emt 00:00:14]} 19. Re1
{[%clk 01:19:08]} {[%emt 00:00:09]} Nb4 {[%clk 00:51:37]} {[%emt 00:02:05]} 20.
Ra3 {[%clk 01:17:43]} {[%emt 00:01:54]} Ra7 {[%clk 00:41:29]} {[%emt 00:10:39]}
21. Nh2 {[%clk 01:12:43]} {[%emt 00:05:29]} c4 {[%clk 00:30:56]} {[%emt
00:11:03]} 22. Nhf1 {[%clk 01:06:32]} {[%emt 00:06:41]} Bxe3 {[%clk 00:22:56]}
{[%emt 00:08:31]} 23. Raxe3 {[%clk 01:05:06]} {[%emt 00:01:55]} Nd3 {[%clk
00:21:53]} {[%emt 00:01:33]} 24. Bxd3 {[%clk 01:05:30]} {[%emt 00:00:06]} cxd3
{[%clk 00:22:22]} {[%emt 00:00:01]} 25. Ng3 {[%clk 01:02:54]} {[%emt 00:03:06]}
g6 {[%clk 00:14:36]} {[%emt 00:08:16]} 26. Nb1 {[%clk 00:56:20]} {[%emt
00:07:03]} Nd7 {[%clk 00:12:10]} {[%emt 00:02:56]} 27. f4 {[%clk 00:45:03]}
{[%emt 00:11:47]} Qf6 {[%clk 00:09:53]} {[%emt 00:02:47]} 28. Nc3 {[%clk
00:35:32]} {[%emt 00:10:00]} Ba6 {[%clk 00:10:04]} {[%emt 00:00:20]} 29. Qg4
{[%clk 00:31:59]} {[%emt 00:04:03]} Qd4 {[%clk 00:08:12]} {[%emt 00:02:22]} 30.
Nf5 {[%clk 00:31:47]} {[%emt 00:00:42]} Qf6 {[%clk 00:07:34]} {[%emt 00:01:08]}
31. Nh4 {[%clk 00:10:33]} Rb7 {[%clk 00:05:39]} {[%emt 00:25:09]} 32. Nf3
{[%clk 00:10:10]} Nc5 {[%clk 00:03:23]} {[%emt 00:02:39]} 33. e5 {[%clk
00:09:42]} {[%emt 00:00:59]} dxe5 {[%clk 00:03:47]} {[%emt 00:00:06]} 34. fxe5
{[%clk 00:09:59]} {[%emt 00:00:13]} Qf5 {[%clk 00:04:14]} {[%emt 00:00:03]} 35.
Qd4 {[%clk 00:06:24]} {[%emt 00:04:04]} Nb3 {[%clk 00:03:02]} {[%emt 00:01:43]}
36. Qh4 {[%clk 00:06:46]} {[%emt 00:00:07]} Qh5 {[%clk 00:02:14]} {[%emt
00:01:18]} 37. Qxh5 {[%clk 00:05:50]} {[%emt 00:01:26]} gxh5 {[%clk 00:02:44]}
{[%emt 00:00:01]} 38. Ne4 {[%clk 00:06:10]} {[%emt 00:00:09]} Reb8 {[%clk
00:02:14]} {[%emt 00:00:59]} 39. e6 {[%clk 00:05:19]} {[%emt 00:01:21]} fxe6
{[%clk 00:02:20]} {[%emt 00:00:25]} 40. dxe6 {[%clk 00:05:42]} {[%emt
00:00:08]} d2 {[%clk 00:01:47]} {[%emt 00:01:03]} 41. Nfxd2 {[%clk 00:05:49]}
{[%emt 00:00:23]} Nxd2 {[%clk 00:02:12]} {[%emt 00:00:05]} 42. Nxd2 {[%clk
00:06:16]} {[%emt 00:00:03]} Rxb2 {[%clk 00:02:18]} {[%emt 00:00:25]} 43. e7
{[%clk 00:03:37]} {[%emt 00:03:08]} Rxd2 {[%clk 00:02:05]} {[%emt 00:00:43]} 44.
e8=Q+ {[%clk 00:04:02]} {[%emt 00:00:05]} Rxe8 {[%clk 00:02:33]} {[%emt
00:00:02]} 45. Rxe8+ {[%clk 00:04:27]} {[%emt 00:00:05]} Kf7 {[%clk 00:03:01]}
{[%emt 00:00:02]} 46. R1e7+ {[%clk 00:04:31]} {[%emt 00:00:25]} Kf6 {[%clk
00:03:29]} {[%emt 00:00:03]} 47. Re6+ {[%clk 00:04:50]} {[%emt 00:00:11]} Kf7
{[%clk 00:03:58]} 48. R8e7+ {[%clk 00:05:10]} {[%emt 00:00:10]} Kf8 {[%clk
00:04:26]} {[%emt 00:00:01]} 49. Ra7 {[%clk 00:04:59]} {[%emt 00:00:40]} Bc4
{[%clk 00:04:21]} {[%emt 00:00:37]} 50. Rxh6 {[%clk 00:04:04]} {[%emt
00:01:25]} Bf7 {[%clk 00:04:27]} {[%emt 00:00:22]} 51. Rf6 {[%clk 00:04:24]}
{[%emt 00:00:11]} 1-0

[Event "IIe Tournoi de GMI du C'Chartres Echecs"]
[Site "Chartres, France"]
[Date "2021.05.18"]
[Round "3.4"]
[White "Vlachos, Anatole"]
[Black "Dgebuadze, Alexandre"]
[Result "1-0"]
[TimeControl "5400+30"]
[WhiteTitle "IM"]
[BlackTitle "GM"]
[WhiteElo "2438"]
[BlackElo "2490"]

1. e4 {[%clk 01:28:13]} {[%emt 00:02:46]} e6 {[%clk 01:30:37]} {[%emt
00:00:23]} 2. d4 {[%clk 01:28:37]} {[%emt 00:00:06]} d5 {[%clk 01:31:02]}
{[%emt 00:00:05]} 3. Nc3 {[%clk 01:28:54]} {[%emt 00:00:14]} Bb4 {[%clk
01:31:17]} {[%emt 00:00:15]} 4. e5 {[%clk 01:29:09]} {[%emt 00:00:14]} Ne7
{[%clk 01:30:30]} {[%emt 00:01:16]} 5. a3 {[%clk 01:29:12]} {[%emt 00:00:27]}
Bxc3+ {[%clk 01:30:50]} {[%emt 00:00:10]} 6. bxc3 {[%clk 01:29:40]} {[%emt
00:00:02]} c5 {[%clk 01:30:26]} {[%emt 00:00:54]} 7. Qg4 {[%clk 01:29:26]}
{[%emt 00:00:43]} O-O {[%clk 01:27:35]} {[%emt 00:03:21]} 8. Bd3 {[%clk
01:28:33]} {[%emt 00:01:23]} Nbc6 {[%clk 01:25:21]} {[%emt 00:02:44]} 9. Qh5
{[%clk 01:27:03]} {[%emt 00:01:59]} Ng6 {[%clk 01:25:32]} {[%emt 00:00:20]} 10.
Nf3 {[%clk 01:27:08]} {[%emt 00:00:24]} Qc7 {[%clk 01:21:04]} {[%emt 00:04:58]}
11. Be3 {[%clk 01:27:20]} {[%emt 00:00:19]} Nce7 {[%clk 01:17:34]} {[%emt
00:04:01]} 12. h4 {[%clk 01:26:27]} {[%emt 00:01:22]} Bd7 {[%clk 01:13:03]}
{[%emt 00:05:02]} 13. Qg4 {[%clk 01:25:57]} {[%emt 00:00:59]} cxd4 {[%clk
00:59:34]} {[%emt 00:14:00]} 14. cxd4 {[%clk 01:26:10]} {[%emt 00:00:16]} f5
{[%clk 00:59:38]} {[%emt 00:00:27]} 15. Qh3 {[%clk 01:23:32]} {[%emt 00:03:07]}
Bb5 {[%clk 00:59:45]} {[%emt 00:00:25]} 16. Bxb5 {[%clk 01:23:58]} {[%emt
00:00:04]} Qa5+ {[%clk 01:00:10]} {[%emt 00:00:03]} 17. Bd2 {[%clk 01:24:26]}
{[%emt 00:00:04]} Qxb5 {[%clk 01:00:28]} {[%emt 00:00:11]} 18. h5 {[%clk
01:24:54]} {[%emt 00:00:02]} Nh8 {[%clk 00:59:17]} {[%emt 00:01:38]} 19. h6
{[%clk 01:25:23]} {[%emt 00:00:04]} g6 {[%clk 00:58:33]} {[%emt 00:01:13]} 20.
Bb4 {[%clk 01:25:51]} {[%emt 00:00:03]} Qd7 {[%clk 00:39:00]} {[%emt 00:20:02]}
21. Qh4 {[%clk 01:26:19]} {[%emt 00:00:02]} Rfe8 {[%clk 00:37:53]} {[%emt
00:01:36]} 22. Qf6 {[%clk 01:26:43]} {[%emt 00:00:06]} Nc6 {[%clk 00:38:08]}
{[%emt 00:00:15]} 23. Ng5 {[%clk 01:25:54]} {[%emt 00:01:18]} Nxb4 {[%clk
00:38:05]} {[%emt 00:00:35]} 24. axb4 {[%clk 01:26:22]} {[%emt 00:00:02]} Re7
{[%clk 00:35:26]} {[%emt 00:03:08]} 25. Nh3 {[%clk 01:26:50]} {[%emt 00:00:02]}
Rf7 {[%clk 00:34:51]} {[%emt 00:01:05]} 26. Qg5 {[%clk 01:27:18]} {[%emt
00:00:02]} Qb5 {[%clk 00:34:00]} {[%emt 00:01:21]} 27. c3 {[%clk 01:27:41]}
{[%emt 00:00:06]} Qd3 {[%clk 00:27:49]} {[%emt 00:06:42]} 28. Rc1 {[%clk
01:28:07]} {[%emt 00:00:05]} Qe4+ {[%clk 00:20:36]} {[%emt 00:07:42]} 29. Kd2
{[%clk 01:28:35]} {[%emt 00:00:02]} Qg4 {[%clk 00:19:59]} {[%emt 00:01:05]} 30.
Ra1 {[%clk 01:14:05]} {[%emt 00:15:01]} Qxg5+ {[%clk 00:17:34]} {[%emt
00:02:55]} 31. Nxg5 {[%clk 01:14:32]} {[%emt 00:00:02]} Re7 {[%clk 00:18:01]}
{[%emt 00:00:03]} 32. Rhc1 {[%clk 00:55:00]} {[%emt 00:19:59]} Nf7 {[%clk
00:17:48]} {[%emt 00:00:46]} 33. Nxf7 {[%clk 00:55:25]} {[%emt 00:00:05]} Kxf7
{[%clk 00:18:07]} {[%emt 00:00:10]} 34. c4 {[%clk 00:55:37]} {[%emt 00:00:19]}
dxc4 {[%clk 00:17:32]} {[%emt 00:01:06]} 35. Rxc4 {[%clk 00:56:04]} {[%emt
00:00:02]} g5 {[%clk 00:15:47]} {[%emt 00:02:14]} 36. Rac1 {[%clk 00:51:38]}
{[%emt 00:04:56]} Rd8 {[%clk 00:15:28]} {[%emt 00:00:50]} 37. Ke3 {[%clk
00:50:34]} {[%emt 00:01:34]} Red7 {[%clk 00:09:40]} {[%emt 00:06:17]} 38. Rc7
{[%clk 00:50:10]} {[%emt 00:00:54]} Kg6 {[%clk 00:08:43]} {[%emt 00:01:27]} 39.
Rxd7 {[%clk 00:50:36]} {[%emt 00:00:04]} Rxd7 {[%clk 00:09:09]} {[%emt
00:00:04]} 40. Rc8 {[%clk 00:51:00]} {[%emt 00:00:06]} g4 {[%clk 00:04:39]}
{[%emt 00:05:00]} 41. Rg8+ {[%clk 00:48:43]} {[%emt 00:02:46]} Kf7 {[%clk
00:04:57]} {[%emt 00:00:12]} 42. Rg7+ {[%clk 00:48:19]} {[%emt 00:00:53]} Ke8
{[%clk 00:05:22]} {[%emt 00:00:07]} 43. d5 {[%clk 00:48:00]} {[%emt 00:00:49]}
Rxd5 {[%clk 00:05:15]} {[%emt 00:00:37]} 44. Rxh7 {[%clk 00:48:21]} {[%emt
00:00:09]} Rxe5+ {[%clk 00:01:40]} {[%emt 00:04:05]} 45. Kf4 {[%clk 00:48:20]}
{[%emt 00:00:29]} Re4+ {[%clk 00:01:04]} {[%emt 00:01:07]} 46. Kg5 {[%clk
00:48:11]} {[%emt 00:00:36]} Rxb4 {[%clk 00:01:16]} {[%emt 00:00:21]} 47. Rc7
{[%clk 00:48:19]} {[%emt 00:00:21]} Rb1 {[%clk 00:00:50]} {[%emt 00:00:57]} 48.
h7 {[%clk 00:48:45]} {[%emt 00:00:05]} Rh1 {[%clk 00:01:14]} {[%emt 00:00:05]}
49. Rxb7 {[%clk 00:48:51]} {[%emt 00:00:25]} Kf8 {[%clk 00:01:08]} {[%emt
00:00:35]} 50. Rxa7 {[%clk 00:48:13]} {[%emt 00:01:08]} 1-0

[Event "IIe Tournoi de GMI du C'Chartres Echecs"]
[Site "Chartres, France"]
[Date "2021.05.18"]
[Round "3.5"]
[White "David, Alberto"]
[Black "Flear, Glenn"]
[Result "1/2-1/2"]
[TimeControl "5400+30"]
[WhiteTitle "GM"]
[BlackTitle "GM"]
[WhiteElo "2517"]
[BlackElo "2431"]

1. e4 {[%clk 01:30:53]} {[%emt 00:00:06]} e5 {[%clk 01:30:50]} {[%emt
00:00:10]} 2. Nf3 {[%clk 01:31:11]} {[%emt 00:00:12]} Nc6 {[%clk 01:31:11]}
{[%emt 00:00:08]} 3. Bb5 {[%clk 01:31:15]} {[%emt 00:00:26]} a6 {[%clk
01:31:26]} {[%emt 00:00:15]} 4. Ba4 {[%clk 01:31:40]} {[%emt 00:00:05]} Nf6
{[%clk 01:31:40]} {[%emt 00:00:16]} 5. d3 {[%clk 01:31:57]} {[%emt 00:00:13]}
d6 {[%clk 01:28:45]} {[%emt 00:03:24]} 6. c3 {[%clk 01:32:09]} {[%emt
00:00:19]} g6 {[%clk 01:28:46]} {[%emt 00:00:29]} 7. O-O {[%clk 01:31:45]}
{[%emt 00:00:54]} Bg7 {[%clk 01:29:08]} {[%emt 00:00:07]} 8. Re1 {[%clk
01:30:43]} {[%emt 00:01:33]} O-O {[%clk 01:29:25]} {[%emt 00:00:13]} 9. h3
{[%clk 01:30:40]} {[%emt 00:00:33]} Re8 {[%clk 01:25:49]} {[%emt 00:04:05]} 10.
Be3 {[%clk 01:24:54]} {[%emt 00:06:17]} b5 {[%clk 01:14:18]} {[%emt 00:12:01]}
11. Bc2 {[%clk 01:25:07]} {[%emt 00:00:17]} Bb7 {[%clk 01:14:00]} {[%emt
00:00:48]} 12. Nbd2 {[%clk 01:22:04]} {[%emt 00:03:33]} Nb8 {[%clk 01:13:31]}
{[%emt 00:00:58]} 13. b4 {[%clk 01:17:36]} {[%emt 00:04:58]} Nbd7 {[%clk
01:09:07]} {[%emt 00:04:54]} 14. Nb3 {[%clk 01:16:11]} {[%emt 00:01:55]} Rc8
{[%clk 01:09:16]} {[%emt 00:00:21]} 15. a4 {[%clk 01:15:51]} {[%emt 00:00:51]}
c5 {[%clk 01:07:21]} {[%emt 00:02:24]} 16. axb5 {[%clk 01:05:35]} {[%emt
00:10:47]} axb5 {[%clk 01:07:44]} {[%emt 00:00:07]} 17. Qb1 {[%clk 01:05:30]}
{[%emt 00:00:35]} cxb4 {[%clk 01:03:00]} {[%emt 00:05:14]} 18. cxb4 {[%clk
01:00:01]} {[%emt 00:05:59]} d5 {[%clk 01:00:16]} {[%emt 00:03:14]} 19. Ra7
{[%clk 00:54:45]} {[%emt 00:05:46]} Ba8 {[%clk 00:57:20]} {[%emt 00:03:25]} 20.
Nc5 {[%clk 00:53:27]} {[%emt 00:01:50]} Rc7 {[%clk 00:48:39]} {[%emt 00:09:10]}
21. Qa2 {[%clk 00:45:21]} {[%emt 00:08:36]} Nxc5 {[%clk 00:43:24]} {[%emt
00:05:46]} 22. Bxc5 {[%clk 00:45:08]} {[%emt 00:00:44]} Rxa7 {[%clk 00:43:07]}
{[%emt 00:00:47]} 23. Qxa7 {[%clk 00:45:08]} {[%emt 00:00:29]} Qd7 {[%clk
00:42:56]} {[%emt 00:00:41]} 24. Qa2 {[%clk 00:34:05]} {[%emt 00:11:35]} Bc6
{[%clk 00:40:51]} {[%emt 00:02:34]} 25. Bb3 {[%clk 00:26:36]} {[%emt 00:07:59]}
h6 {[%clk 00:39:07]} {[%emt 00:02:14]} 26. Qa1 {[%clk 00:20:13]} {[%emt
00:06:53]} Qc7 {[%clk 00:37:13]} {[%emt 00:02:22]} 27. Qb1 {[%clk 00:14:22]}
{[%emt 00:06:22]} dxe4 {[%clk 00:31:04]} {[%emt 00:06:38]} 28. dxe4 {[%clk
00:14:48]} {[%emt 00:00:05]} Qb7 {[%clk 00:30:46]} {[%emt 00:00:48]} 29. Bc2
{[%clk 00:13:40]} {[%emt 00:01:38]} Nh5 {[%clk 00:28:27]} {[%emt 00:02:48]} 30.
Nd2 {[%clk 00:12:49]} {[%emt 00:01:21]} Nf4 {[%clk 00:28:16]} {[%emt 00:00:41]}
31. Nb3 {[%clk 00:13:06]} {[%emt 00:00:14]} Qc8 {[%clk 00:26:22]} {[%emt
00:02:24]} 32. Be3 {[%clk 00:04:46]} {[%emt 00:08:50]} Bd7 {[%clk 00:25:24]}
{[%emt 00:01:28]} 33. Kh2 {[%clk 00:03:36]} {[%emt 00:01:39]} Bxh3 {[%clk
00:21:26]} {[%emt 00:04:29]} 34. Bxf4 {[%clk 00:03:59]} {[%emt 00:00:06]} exf4
{[%clk 00:21:38]} {[%emt 00:00:18]} 35. gxh3 {[%clk 00:04:04]} {[%emt
00:00:25]} f3 {[%clk 00:22:00]} {[%emt 00:00:07]} 36. Kg3 {[%clk 00:04:13]}
{[%emt 00:00:21]} Be5+ 37. Kxf3 {[%clk 00:04:13]} Qxh3+ 38. Ke2 {[%clk
00:04:13]} Qc8 {[%emt 00:06:29]} 39. Kf3 Qh3+ {[%clk 00:20:17]} 40. Ke2 {[%clk
00:05:05]} Qg4+ {[%clk 00:17:02]} {[%emt 00:00:08]} 41. Kf1 {[%clk 00:05:30]}
{[%emt 00:00:05]} Qh3+ {[%clk 00:16:54]} {[%emt 00:00:38]} 42. Ke2 {[%clk
00:05:55]} {[%emt 00:00:05]} Qg4+ {[%clk 00:16:55]} {[%emt 00:00:29]} 43. Kf1
{[%clk 00:06:19]} {[%emt 00:00:05]} Qh3+ {[%emt 00:00:17]} 1/2-1/2

[Event "IIe Tournoi de GMI du C'Chartres Echecs"]
[Site "Chartres, France"]
[Date "2021.05.18"]
[Round "4.1"]
[White "Loiseau, Quentin"]
[Black "David, Alberto"]
[Result "0-1"]
[TimeControl "5400+30"]
[WhiteTitle "IM"]
[BlackTitle "GM"]
[WhiteElo "2455"]
[BlackElo "2517"]

1. e4 {[%clk 01:30:52]} {[%emt 00:00:06]} c6 {[%clk 01:30:31]} {[%emt
00:00:30]} 2. d4 {[%clk 01:30:55]} {[%emt 00:00:27]} d5 {[%clk 01:30:53]}
{[%emt 00:00:08]} 3. e5 {[%clk 01:30:26]} {[%emt 00:01:00]} Bf5 {[%clk
01:31:12]} {[%emt 00:00:10]} 4. Nf3 {[%clk 01:30:41]} {[%emt 00:00:15]} e6
{[%clk 01:31:35]} {[%emt 00:00:08]} 5. Be2 {[%clk 01:31:07]} {[%emt 00:00:04]}
Ne7 {[%clk 01:31:05]} {[%emt 00:01:00]} 6. O-O {[%clk 01:31:00]} {[%emt
00:00:37]} c5 {[%clk 01:28:59]} {[%emt 00:02:36]} 7. c4 {[%clk 01:23:08]}
{[%emt 00:08:22]} Nbc6 {[%clk 01:28:56]} {[%emt 00:00:33]} 8. Nc3 {[%clk
01:18:15]} {[%emt 00:05:23]} dxc4 {[%clk 01:24:50]} {[%emt 00:04:36]} 9. Bg5
{[%clk 01:16:28]} {[%emt 00:02:17]} a6 {[%clk 01:05:47]} {[%emt 00:19:34]} 10.
Nd2 {[%clk 01:14:54]} {[%emt 00:02:04]} Qc7 {[%clk 00:46:40]} {[%emt 00:19:37]}
11. Nxc4 {[%clk 01:12:35]} {[%emt 00:02:48]} Nd5 {[%clk 00:46:58]} {[%emt
00:00:12]} 12. Nxd5 {[%clk 01:00:42]} {[%emt 00:12:23]} exd5 {[%clk 00:46:38]}
{[%emt 00:00:50]} 13. Ne3 {[%clk 00:59:42]} {[%emt 00:01:30]} Be6 {[%clk
00:35:22]} {[%emt 00:11:47]} 14. f4 {[%clk 00:55:22]} {[%emt 00:04:50]} h6
{[%clk 00:35:28]} {[%emt 00:00:24]} 15. f5 {[%clk 00:25:38]} {[%emt 00:30:14]}
hxg5 {[%clk 00:35:26]} {[%emt 00:00:32]} 16. fxe6 {[%clk 00:25:59]} {[%emt
00:00:09]} fxe6 {[%clk 00:35:21]} {[%emt 00:00:34]} 17. Bh5+ {[%clk 00:24:43]}
{[%emt 00:01:46]} Kd8 {[%clk 00:34:45]} {[%emt 00:01:07]} 18. Qg4 {[%clk
00:13:44]} cxd4 {[%clk 00:20:58]} {[%emt 00:25:46]} 19. Qxe6 {[%clk 00:05:30]}
{[%emt 00:08:43]} Qxe5 {[%clk 00:21:17]} {[%emt 00:00:12]} 20. Qxd5+ {[%clk
00:04:17]} {[%emt 00:01:44]} Qxd5 {[%clk 00:10:35]} {[%emt 00:11:11]} 21. Nxd5
{[%clk 00:04:46]} {[%emt 00:00:01]} Bd6 {[%clk 00:10:59]} {[%emt 00:00:06]} 22.
g4 {[%clk 00:01:37]} {[%emt 00:03:39]} Ne5 {[%clk 00:11:24]} {[%emt 00:00:06]}
23. Nb6 {[%clk 00:01:17]} {[%emt 00:00:50]} Rb8 {[%clk 00:11:39]} {[%emt
00:00:15]} 24. Rad1 {[%clk 00:00:32]} {[%emt 00:01:15]} d3 {[%clk 00:11:58]}
{[%emt 00:00:12]} 25. Nd5 {[%clk 00:00:32]} {[%emt 00:00:30]} g6 {[%clk
00:12:02]} {[%emt 00:00:26]} 26. Bxg6 {[%clk 00:00:33]} {[%emt 00:00:30]} Nxg6
{[%clk 00:12:22]} {[%emt 00:00:09]} 27. Rxd3 {[%clk 00:00:55]} {[%emt
00:00:08]} Ne5 {[%clk 00:05:55]} {[%emt 00:06:57]} 28. Rdd1 {[%clk 00:01:15]}
{[%emt 00:00:10]} Rh6 {[%clk 00:04:06]} {[%emt 00:02:19]} 29. Ne3 {[%clk
00:00:45]} {[%emt 00:01:01]} Kc7 {[%clk 00:04:06]} {[%emt 00:00:30]} 30. Kg2
{[%clk 00:00:32]} {[%emt 00:00:43]} Rbh8 {[%clk 00:04:17]} {[%emt 00:00:19]} 31.
h3 {[%clk 00:00:31]} {[%emt 00:00:31]} Rxh3 {[%clk 00:04:07]} {[%emt 00:00:40]}
32. Nf5 {[%clk 00:00:41]} {[%emt 00:00:20]} Rh2+ {[%clk 00:04:29]} {[%emt
00:00:08]} 33. Kg3 {[%clk 00:01:08]} {[%emt 00:00:03]} R8h3# {[%clk 00:04:53]}
{[%emt 00:00:05]} 0-1

[Event "IIe Tournoi de GMI du C'Chartres Echecs"]
[Site "Chartres, France"]
[Date "2021.05.18"]
[Round "4.2"]
[White "Dgebuadze, Alexandre"]
[Black "Flear, Glenn"]
[Result "1/2-1/2"]
[TimeControl "5400+30"]
[WhiteTitle "GM"]
[BlackTitle "GM"]
[WhiteElo "2490"]
[BlackElo "2431"]

1. c4 {[%clk 01:30:31]} {[%emt 00:00:28]} e6 {[%clk 01:30:46]} {[%emt
00:00:14]} 2. Nf3 {[%clk 01:30:52]} {[%emt 00:00:10]} d5 {[%clk 01:31:05]}
{[%emt 00:00:10]} 3. e3 {[%clk 01:31:16]} {[%emt 00:00:06]} Nf6 {[%clk
01:31:23]} {[%emt 00:00:13]} 4. Nc3 {[%clk 01:31:40]} {[%emt 00:00:06]} b6
{[%clk 01:29:37]} {[%emt 00:02:15]} 5. d4 {[%clk 01:25:48]} {[%emt 00:06:22]}
Bb7 {[%clk 01:28:46]} {[%emt 00:01:20]} 6. cxd5 {[%clk 01:24:53]} {[%emt
00:01:27]} exd5 {[%clk 01:24:50]} {[%emt 00:04:26]} 7. Bd3 {[%clk 01:19:45]}
{[%emt 00:05:37]} Nbd7 {[%clk 01:23:00]} {[%emt 00:02:20]} 8. O-O {[%clk
01:17:26]} {[%emt 00:02:50]} Be7 {[%clk 01:14:40]} {[%emt 00:08:50]} 9. Ne5
{[%clk 01:13:41]} {[%emt 00:04:15]} Nxe5 {[%clk 00:59:42]} {[%emt 00:15:28]} 10.
dxe5 {[%clk 01:13:50]} {[%emt 00:00:21]} Ne4 {[%clk 00:59:30]} {[%emt
00:00:42]} 11. Qa4+ {[%clk 01:03:12]} {[%emt 00:11:08]} Qd7 {[%clk 00:57:36]}
{[%emt 00:02:23]} 12. Qxd7+ {[%clk 00:59:22]} {[%emt 00:04:21]} Kxd7 {[%clk
00:58:00]} {[%emt 00:00:05]} 13. Nxe4 {[%clk 00:58:34]} {[%emt 00:01:18]} dxe4
{[%clk 00:58:23]} {[%emt 00:00:07]} 14. Bc4 {[%clk 00:59:03]} {[%emt 00:00:02]}
Ke8 {[%clk 00:53:36]} {[%emt 00:05:15]} 15. Rd1 {[%clk 00:52:41]} {[%emt
00:06:53]} f6 {[%clk 00:44:58]} {[%emt 00:09:09]} 16. exf6 {[%clk 00:30:51]}
{[%emt 00:22:20]} Bxf6 {[%clk 00:44:33]} {[%emt 00:00:55]} 17. Rb1 {[%clk
00:30:59]} {[%emt 00:00:22]} Ke7 {[%clk 00:39:31]} {[%emt 00:05:32]} 18. b4
{[%clk 00:26:29]} {[%emt 00:05:01]} Rhd8 {[%clk 00:37:11]} {[%emt 00:02:49]} 19.
Ba3 {[%clk 00:24:47]} {[%emt 00:02:11]} Rxd1+ 20. Rxd1 {[%clk 00:24:47]} Rd8 21.
b5+ {[%clk 00:24:47]} Ke8 22. Rxd8+ {[%clk 00:24:47]} Kxd8 23. Kf1 {[%clk
00:24:47]} Kd7 {[%clk 00:30:30]} 24. Ke2 {[%clk 00:24:47]} 1/2-1/2